bitfinex/quotes_BTCUSD_20211001
["timestamp","ask_amount","ask_price","bid_price","bid_amount"]
[1633092120345,0.0185,47422.0,47417.0,0.1]
[1633092120546,0.38116172,47430.0,47419.0,0.00120931]
[1633092120742,0.014,47422.0,47419.0,0.00120931]
[1633092120942,0.014,47422.0,47420.0,0.218431]
[1633092121142,0.014,47422.0,47419.0,0.00120931]
[1633092121345,0.014,47422.0,47421.0,1.434827]
[1633092121548,0.014,47422.0,47421.0,0.303258]
[1633092121744,0.014,47422.0,47421.0,0.403258]
[1633092122144,0.00121981,47428.0,47421.0,0.318431]
[1633092122345,0.18330328,47424.0,47421.0,0.1]
[1633092122746,0.18330328,47424.0,47421.0,0.108]
[1633092123146,0.210906,47427.0,47422.0,0.20608281]
[1633092123346,0.034,47428.0,47422.0,0.20608281]
[1633092123545,0.034,47428.0,47424.0,0.0001205]
[1633092123945,0.034,47428.0,47424.0,0.1001205]
[1633092124151,0.08800253,47429.0,47424.0,0.1001205]
[1633092124546,0.08800253,47429.0,47424.0,0.1]
[1633092124745,0.08800253,47429.0,47418.0,0.316309]
[1633092124946,0.2258349,47424.0,47421.0,0.20981027]
[1633092125145,0.12553263,47429.0,47421.0,0.20981027]
[1633092125345,0.037,47429.0,47423.0,0.00013255]
[1633092126147,0.1869106,47427.0,47423.0,0.00013255]
[1633092126546,0.1869106,47427.0,47421.0,0.20981027]
[1633092126751,0.036,47427.0,47423.0,0.008]
[1633092127348,0.2189611,47426.0,47423.0,0.008]
[1633092127747,0.00042165,47425.0,47423.0,0.008]
[1633092128007,0.080752,47424.0,47423.0,0.008]
[1633092128149,0.39304039,47424.0,47423.0,0.008]
[1633092128348,0.39304039,47424.0,47420.0,0.02]
[1633092128553,0.00042165,47428.0,47420.0,0.02]
[1633092128749,0.00042165,47428.0,47423.0,0.023]
[1633092128948,0.032,47424.0,47423.0,0.023]
[1633092130149,0.04273,47428.0,47420.0,0.02]
[1633092130548,0.25943117,47428.0,47420.0,0.02]
[1633092131010,0.29200952,47428.0,47420.0,0.032]
[1633092131553,0.49473442,47428.0,47420.0,0.032]
[1633092131750,0.316337,47427.0,47420.0,0.032]
[1633092132150,0.316337,47427.0,47420.0,0.02]
[1633092132351,0.52063837,47427.0,47420.0,0.02]
[1633092132552,0.52106002,47427.0,47422.0,0.001]
[1633092132750,0.218431,47426.0,47422.0,0.001]
[1633092133150,0.00042165,47425.0,47422.0,0.001]
[1633092133351,0.080752,47424.0,47422.0,0.00240844]
[1633092133750,0.23441542,47427.0,47422.0,0.00240844]
[1633092134014,0.534776,47426.0,47422.0,0.00240844]
[1633092134154,1.55128114,47423.0,47422.0,0.00240844]
[1633092134356,0.35,47422.0,47420.0,0.02]
[1633092134559,1.39506207,47421.0,47420.0,0.02]
[1633092134750,1.39548372,47421.0,47420.0,0.02]
[1633092134954,1.35657428,47421.0,47420.0,0.02006025]
[1633092135154,1.75464097,47421.0,47420.0,0.02006025]
[1633092135352,1.97784097,47421.0,47420.0,0.02006025]
[1633092136353,2.94426697,47421.0,47420.0,0.02006025]
[1633092137018,2.97626697,47421.0,47420.0,0.02006025]
[1633092137158,2.32626697,47421.0,47420.0,0.02006025]
[1633092138153,2.29426697,47421.0,47420.0,0.02006025]
[1633092138952,2.32626697,47421.0,47420.0,0.02006025]
[1633092140155,2.29426697,47421.0,47420.0,0.02006025]
[1633092140556,1.05,47420.0,47407.0,0.0002]
[1633092140754,0.827424,47414.0,47407.0,0.0002]
[1633092140954,0.23735265,47413.0,47407.0,0.0002]
[1633092141356,0.00042165,47412.0,47407.0,0.0002]
[1633092141555,0.22982373,47411.0,47407.0,0.0002]
[1633092142361,0.54628373,47411.0,47407.0,0.0002]
[1633092143019,0.57828373,47411.0,47407.0,0.0002]
[1633092143360,0.57828373,47411.0,47404.0,0.1002]
[1633092143361,1.49529724,47408.0,47404.0,0.1002]
[1633092143561,0.73326799,47405.0,47404.0,0.1002]
[1633092143756,0.96424465,47405.0,47404.0,0.1002]
[1633092143957,0.75218964,47405.0,47404.0,0.1002]
[1633092144154,0.95088487,47405.0,47404.0,0.0002]
[1633092144356,0.97538964,47405.0,47404.0,0.0002]
[1633092144966,2.12438964,47405.0,47401.0,0.00022]
[1633092145162,0.681731,47403.0,47400.0,0.0003]
[1633092145362,0.681731,47403.0,47397.0,0.0002]
[1633092145363,0.544052,47401.0,47397.0,0.0002]
[1633092145562,0.35,47399.0,47385.0,0.0002]
[1633092145760,0.32111431,47388.0,47385.0,0.0002]
[1633092146024,0.22448847,47387.0,47385.0,0.0002]
[1633092146163,0.00042165,47386.0,47385.0,0.0002]
[1633092146360,0.43733395,47386.0,47385.0,0.0002]
[1633092146563,0.4369123,47386.0,47385.0,0.0002]
[1633092146964,0.4699123,47386.0,47385.0,0.0002]
[1633092147568,0.47033395,47386.0,47385.0,0.0002]
[1633092147964,0.69480795,47386.0,47385.0,0.0002]
[1633092148263,0.69480795,47386.0,47374.0,0.52706455]
[1633092148264,0.23735265,47386.0,47374.0,0.52706455]
[1633092148465,0.23735265,47386.0,47377.0,0.12025671]
[1633092148466,0.316613,47384.0,47377.0,0.12025671]
[1633092148662,0.0185,47383.0,47377.0,0.0012976]
[1633092148861,0.0185,47382.0,47377.0,0.0012976]
[1633092149064,0.0185,47381.0,47374.0,0.52706455]
[1633092149262,0.24255479,47377.0,47375.0,0.218431]
[1633092149466,0.22014351,47376.0,47375.0,0.218431]
[1633092149665,0.22014351,47376.0,47371.0,0.02888366]
[1633092149863,0.22014351,47376.0,47374.0,0.218431]
[1633092150068,0.0185,47376.0,47371.0,0.027636]
[1633092150263,0.0185,47376.0,47371.0,0.02893015]
[1633092150663,0.01892165,47376.0,47371.0,0.02893015]
[1633092150863,0.0255,47376.0,47373.0,0.02742]
[1633092151065,0.218431,47375.0,47373.0,0.02742]
[1633092151265,0.00042165,47374.0,47373.0,0.02742]
[1633092151465,0.31067956,47374.0,47373.0,0.02742]
[1633092151664,0.31025791,47374.0,47373.0,0.02742]
[1633092151862,0.31067956,47374.0,47373.0,0.02742]
[1633092152064,0.76067956,47374.0,47373.0,0.0272]
[1633092152265,0.76494356,47374.0,47373.0,0.0272]
[1633092152470,0.76494356,47374.0,47371.0,0.027636]
[1633092152471,2.118431,47372.0,47369.0,0.0002]
[1633092152670,0.580752,47370.0,47369.0,0.0002]
[1633092152865,1.11621767,47370.0,47369.0,0.0002]
[1633092153066,0.07885498,47364.0,47363.0,0.00022]
[1633092153265,0.31578598,47364.0,47363.0,0.00022]
[1633092153470,1.86304816,47364.0,47363.0,0.00068769]
[1633092153668,0.211242,47358.0,47350.0,0.0004]
[1633092153870,0.00129271,47352.0,47350.0,0.0004]
[1633092154071,0.60089231,47351.0,47340.0,0.02902]
[1633092154267,0.22805142,47350.0,47340.0,0.02902]
[1633092154466,0.697361,47346.0,47340.0,0.02902]
[1633092154667,0.00128166,47341.0,47339.0,0.0002]
[1633092154867,0.099252,47340.0,47334.0,0.11489095]
[1633092155068,0.0185,47340.0,47334.0,0.11489095]
[1633092155277,0.0185,47340.0,47339.0,0.00028971]
[1633092155472,0.35918747,47334.0,47333.0,0.36198581]
[1633092155670,0.35918747,47334.0,47330.0,0.00042]
[1633092155871,0.0185,47337.0,47333.0,0.00124554]
[1633092156076,0.00128166,47341.0,47333.0,0.00124554]
[1633092156272,0.00128166,47341.0,47338.0,0.18500742]
[1633092156471,0.21,47349.0,47338.0,0.18500742]
[1633092156472,0.21,47349.0,47340.0,0.09852153]
[1633092156676,0.21,47349.0,47348.0,0.1135637]
[1633092156874,0.21,47349.0,47348.0,0.00129378]
[1633092157073,0.22309655,47349.0,47348.0,0.90129378]
[1633092157275,0.01309655,47349.0,47348.0,1.11972478]
[1633092157470,0.01309655,47349.0,47348.0,1.34292478]
[1633092157879,0.01309655,47349.0,47348.0,0.34256534]
[1633092158131,0.01309655,47349.0,47348.0,0.218431]
[1633092158330,9.655e-05,47349.0,47348.0,0.441631]
[1633092158529,9.655e-05,47349.0,47348.0,0.218431]
[1633092158732,0.22686561,47349.0,47348.0,0.218431]
[1633092158935,0.2797724,47345.0,47340.0,0.9378]
[1633092159135,0.25986561,47349.0,47341.0,0.218431]
[1633092159332,0.25986561,47349.0,47338.0,0.5853]
[1633092159735,0.26109639,47349.0,47338.0,0.6853]
[1633092159932,0.18633905,47340.0,47338.0,0.6853]
[1633092160134,0.18633905,47340.0,47339.0,0.218431]
[1633092160335,0.18633905,47340.0,47337.0,0.00126168]
[1633092160538,0.18633905,47340.0,47336.0,0.09484169]
[1633092160733,0.21126,47343.0,47336.0,0.09484169]
[1633092160932,0.022,47340.0,47337.0,0.218431]
[1633092161133,0.022,47340.0,47337.0,0.318431]
[1633092161734,0.022,47340.0,47339.0,0.50126552]
[1633092161934,0.022,47340.0,47339.0,0.61969652]
[1633092162334,0.19657273,47349.0,47339.0,0.61969652]
[1633092162335,0.19657273,47349.0,47339.0,0.84289652]
[1633092162533,9.655e-05,47349.0,47345.0,0.09913749]
[1633092162734,9.655e-05,47349.0,47338.0,0.19077372]
[1633092162935,9.655e-05,47349.0,47338.0,0.19202228]
[1633092162936,6.034e-05,47346.0,47338.0,0.19202228]
[1633092163137,0.21130934,47346.0,47338.0,0.19202228]
[1633092163735,6.034e-05,47346.0,47345.0,0.00129327]
[1633092164044,6.034e-05,47346.0,47343.0,0.1]
[1633092165043,0.02406034,47346.0,47343.0,0.1]
[1633092166237,6.034e-05,47346.0,47340.0,0.09899326]
[1633092166438,6.034e-05,47346.0,47341.0,0.218431]
[1633092166641,6.034e-05,47346.0,47345.0,2.8512551]
[1633092166842,3.4e-07,47346.0,47345.0,3.64131159]
[1633092167040,3.4e-07,47346.0,47345.0,4.23396563]
[1633092167438,3.4e-07,47346.0,47345.0,4.26396563]
[1633092167639,3.4e-07,47346.0,47345.0,4.26296564]
[1633092167841,3.4e-07,47346.0,47345.0,4.30201564]
[1633092168439,0.18915708,47365.0,47361.0,0.09728903]
[1633092168641,0.211162,47360.0,47358.0,0.13145888]
[1633092169040,0.511162,47360.0,47358.0,0.13145888]
[1633092169241,0.511162,47360.0,47359.0,0.24990309]
[1633092169441,0.211162,47360.0,47359.0,0.24990309]
[1633092169639,0.21133093,47360.0,47359.0,0.56591526]
[1633092169844,0.00016893,47360.0,47359.0,3.62059102]
[1633092170052,0.038,47365.0,47361.0,0.00016893]
[1633092170244,0.21111,47366.0,47364.0,1.51970104]
[1633092170441,0.21111,47366.0,47365.0,0.21969128]
[1633092170640,0.21111,47366.0,47365.0,0.42609449]
[1633092170843,0.21111,47366.0,47365.0,0.6480029]
[1633092171042,0.211116,47368.0,47367.0,0.10212239]
[1633092171244,0.211116,47368.0,47367.0,0.52114656]
[1633092171443,0.2112125,47368.0,47367.0,0.52114656]
[1633092171641,0.2112125,47368.0,47367.0,0.41902417]
[1633092171845,0.2112125,47368.0,47367.0,0.20059317]
[1633092172841,0.2112125,47368.0,47367.0,0.60059317]
[1633092173055,0.2132125,47368.0,47367.0,0.23259317]
[1633092173242,0.2132125,47368.0,47367.0,0.45579317]
[1633092173448,0.2132125,47368.0,47367.0,0.45699998]
[1633092173642,0.2132125,47368.0,47367.0,0.23379998]
[1633092174243,0.2112125,47368.0,47367.0,0.20179998]
[1633092174441,0.2112125,47368.0,47367.0,0.13634117]
[1633092174442,0.2062125,47368.0,47367.0,0.13634117]
[1633092174841,0.2062125,47368.0,47367.0,0.93634117]
[1633092175041,0.2282125,47368.0,47367.0,1.18177217]
[1633092176145,0.2282125,47368.0,47367.0,0.38177217]
[1633092176341,0.2282125,47368.0,47367.0,0.16334117]
[1633092176547,0.2282125,47368.0,47367.0,0.027]
[1633092176743,0.2062125,47368.0,47366.0,0.22907143]
[1633092177146,0.222116,47368.0,47367.0,0.03]
[1633092177341,0.222116,47368.0,47367.0,0.13]
[1633092177541,0.2222125,47368.0,47367.0,0.13]
[1633092177741,0.2222125,47368.0,47367.0,0.25366417]
[1633092177943,0.2222125,47368.0,47367.0,0.13]
[1633092178343,0.2062125,47368.0,47367.0,0.1]
[1633092179144,0.2062125,47368.0,47367.0,0.131]
[1633092179545,0.2062125,47368.0,47367.0,0.031]
[1633092179747,0.45245462,47368.0,47367.0,0.031]
[1633092179946,0.45245462,47368.0,47367.0,0.131]
[1633092180350,0.45245462,47368.0,47367.0,0.1]
[1633092180548,0.2062125,47368.0,47367.0,0.1]
[1633092180747,0.2062125,47368.0,47367.0,0.6]
[1633092180956,0.004264,47374.0,47371.0,0.42224068]
[1633092181156,0.004264,47374.0,47373.0,0.218431]
[1633092181548,0.00433637,47374.0,47373.0,0.46485492]
[1633092181948,0.00433637,47374.0,47373.0,0.218431]
[1633092182149,0.00433637,47374.0,47373.0,0.1]
[1633092182747,0.30433637,47374.0,47373.0,0.1]
[1633092182948,0.00433637,47374.0,47373.0,0.1]
[1633092183150,0.03333637,47374.0,47373.0,0.127]
[1633092183748,0.01833637,47374.0,47373.0,0.127]
[1633092184348,0.211087,47375.0,47373.0,0.1]
[1633092185149,0.238087,47375.0,47373.0,0.104]
[1633092185353,1.02079388,47350.0,47349.0,0.24509391]
[1633092185564,1.02079388,47350.0,47340.0,0.527751]
[1633092185565,1.20985943,47340.0,47320.0,0.00042]
[1633092185757,0.13273366,47324.0,47320.0,0.00042]
[1633092185957,0.11418563,47311.0,47306.0,0.94497]
[1633092186157,0.37936873,47311.0,47306.0,0.93135437]
[1633092186356,0.37936873,47311.0,47301.0,0.00042]
[1633092186357,0.5232,47309.0,47301.0,0.00042]
[1633092186554,0.21021827,47307.0,47301.0,0.00042]
[1633092186753,0.42292999,47305.0,47301.0,0.00042]
[1633092186951,0.53367563,47304.0,47300.0,1.31005108]
[1633092187150,0.3,47301.0,47300.0,0.88713008]
[1633092187350,0.3190301,47301.0,47300.0,0.88713008]
[1633092187655,0.211465,47307.0,47306.0,0.74012199]
[1633092187854,1.155,47309.0,47308.0,0.57955165]
[1633092187855,0.037,47309.0,47308.0,0.57955165]
[1633092188054,0.037,47309.0,47308.0,0.79798265]
[1633092188251,0.037,47309.0,47308.0,0.9996316]
[1633092188450,0.3,47312.0,47308.0,1.08985269]
[1633092188651,0.3,47312.0,47309.0,0.218431]
[1633092188851,0.3,47312.0,47309.0,0.16764]
[1633092189054,0.3,47312.0,47308.0,0.70177274]
[1633092189055,0.301,47312.0,47308.0,0.70177274]
[1633092189250,0.301,47312.0,47308.0,0.59655165]
[1633092189449,0.301,47312.0,47308.0,0.47400233]
[1633092189450,0.3022872,47312.0,47308.0,0.47400233]
[1633092189852,0.20117696,47311.0,47308.0,0.47400233]
[1633092190251,0.20117696,47311.0,47310.0,0.00074884]
[1633092190455,0.3022872,47312.0,47310.0,0.00074884]
[1633092190651,0.3012872,47312.0,47310.0,0.00074884]
[1633092190849,0.3012872,47312.0,47311.0,0.00073675]
[1633092191050,0.5532032,47312.0,47311.0,0.00073675]
[1633092191250,0.63751427,47312.0,47311.0,0.00073675]
[1633092191449,0.79055538,47312.0,47311.0,0.00073675]
[1633092191654,0.033,47312.0,47311.0,0.00073675]
[1633092191851,0.333,47312.0,47311.0,0.00073675]
[1633092192450,0.3,47312.0,47311.0,0.00073675]
[1633092192852,0.518916,47312.0,47311.0,0.00073675]
[1633092193051,0.34120509,47312.0,47311.0,0.00073675]
[1633092193850,0.335,47312.0,47311.0,0.00073675]
[1633092194052,0.33625508,47312.0,47311.0,0.00073675]
[1633092194450,0.295,47312.0,47311.0,0.00073675]
[1633092194650,0.29626866,47312.0,47311.0,0.00073675]
[1633092194851,0.29626866,47312.0,47308.0,0.53329078]
[1633092195054,0.333,47312.0,47311.0,0.009]
[1633092196250,0.62467408,47312.0,47311.0,0.009]
[1633092196449,0.295,47312.0,47308.0,0.54200233]
[1633092197051,0.315,47312.0,47308.0,0.56400233]
[1633092198650,0.295,47312.0,47308.0,0.54200233]
[1633092199253,0.295,47312.0,47308.0,0.44200233]
[1633092199457,0.308,47312.0,47308.0,0.45841417]
[1633092200851,0.295,47312.0,47308.0,0.44341417]
[1633092201055,0.295,47312.0,47308.0,0.39341417]
[1633092201251,0.321,47312.0,47308.0,0.41041417]
[1633092201652,0.18123295,47311.0,47308.0,0.41041417]
[1633092201852,0.321,47312.0,47308.0,0.41041417]
[1633092201853,0.42507644,47312.0,47308.0,0.41041417]
[1633092202057,0.03,47310.0,47308.0,0.41041417]
[1633092202452,0.03,47310.0,47308.0,0.39341417]
[1633092202855,0.71163694,47309.0,47305.0,0.18596704]
[1633092203055,0.00121577,47306.0,47305.0,0.18596704]
[1633092203253,0.04792241,47306.0,47305.0,0.18596704]
[1633092203452,0.04792241,47306.0,47300.0,0.88713008]
[1633092203453,0.29492751,47305.0,47300.0,0.88713008]
[1633092203653,0.09657571,47304.0,47300.0,0.88713008]
[1633092203854,0.211437,47304.0,47301.0,0.218916]
[1633092204059,0.29492751,47303.0,47302.0,0.31150153]
[1633092204257,0.29492751,47303.0,47302.0,0.30774763]
[1633092204855,0.29492751,47303.0,47302.0,0.30721753]
[1633092205056,0.29492751,47303.0,47302.0,0.40721753]
[1633092205654,0.29492751,47303.0,47302.0,0.40774763]
[1633092205858,0.29492751,47303.0,47302.0,0.40721753]
[1633092206657,0.29492751,47303.0,47302.0,0.318916]
[1633092206858,0.29492751,47303.0,47302.0,0.1]
[1633092207264,0.29492751,47303.0,47302.0,0.318916]
[1633092207459,0.29492751,47303.0,47302.0,0.352916]
[1633092208459,0.29492751,47303.0,47302.0,0.3534461]
[1633092208657,0.29492751,47303.0,47302.0,0.2434461]
[1633092209066,0.09868889,47320.0,47312.0,0.3143076]
[1633092209265,0.09446523,47335.0,47323.0,0.00126787]
[1633092209463,4.85423861,47345.0,47324.0,0.01729412]
[1633092209464,4.9554696,47345.0,47324.0,0.01729412]
[1633092209662,4.85302115,47345.0,47324.0,0.02460201]
[1633092209865,0.211235,47342.0,47334.0,0.0012551]
[1633092210063,0.18928393,47338.0,47334.0,0.1356651]
[1633092210261,0.00033802,47335.0,47334.0,0.1356651]
[1633092210462,0.00033802,47335.0,47334.0,3.08482579]
[1633092210662,0.00033802,47335.0,47334.0,0.5682582]
[1633092210863,0.00033802,47335.0,47334.0,0.1256651]
[1633092211062,0.47485802,47335.0,47329.0,0.20022]
[1633092211261,0.22170196,47333.0,47329.0,0.20022]
[1633092211462,0.22170196,47333.0,47330.0,0.00025241]
[1633092211463,0.3,47332.0,47330.0,0.00025241]
[1633092211662,0.3,47332.0,47329.0,0.27208024]
[1633092212063,0.29,47332.0,47329.0,0.19522]
[1633092212661,0.1872089,47331.0,47324.0,0.62326]
[1633092212863,0.1872089,47331.0,47324.0,0.52363073]
[1633092213064,0.1872089,47331.0,47328.0,0.0971481]
[1633092213461,0.1872089,47331.0,47322.0,0.00025253]
[1633092213666,0.00125725,47329.0,47321.0,0.422794]
[1633092214062,0.00027757,47328.0,47322.0,0.218863]
[1633092214261,0.00125725,47329.0,47322.0,0.218863]
[1633092214467,0.29,47326.0,47324.0,0.17261656]
[1633092214662,0.29,47326.0,47325.0,0.218863]
[1633092215262,0.29,47326.0,47325.0,0.21911553]
[1633092215463,0.2883839,47330.0,47325.0,0.218863]
[1633092215664,0.2883839,47330.0,47324.0,0.07897085]
[1633092215863,0.3,47330.0,47324.0,0.19366135]
[1633092216063,0.3,47330.0,47325.0,0.00025253]
[1633092216371,0.2303374,47329.0,47327.0,0.05034446]
[1633092216564,0.00126415,47324.0,47321.0,0.422794]
[1633092216864,0.20860957,47322.0,47321.0,0.38169954]
[1633092217064,0.42800267,47322.0,47321.0,0.38169954]
[1633092217262,0.42800267,47322.0,47321.0,0.38178407]
[1633092217263,0.92674399,47322.0,47321.0,0.38178407]
[1633092218062,1.14994399,47322.0,47321.0,0.38178407]
[1633092218661,1.14994399,47322.0,47321.0,0.26068407]
[1633092218662,1.15047409,47322.0,47321.0,0.26068407]
[1633092218864,1.14994399,47322.0,47321.0,0.26068407]
[1633092219664,0.42747257,47322.0,47321.0,0.26068407]
[1633092219864,0.3,47323.0,47321.0,0.26068407]
[1633092220063,0.218863,47322.0,47321.0,0.26068407]
[1633092220268,0.218863,47322.0,47321.0,0.26059954]
[1633092221064,0.218863,47322.0,47319.0,0.1328736]
[1633092221265,0.3,47320.0,47319.0,0.1328736]
[1633092221464,0.71126213,47320.0,47319.0,0.1328736]
[1633092222064,1.11993224,47320.0,47319.0,0.1328736]
[1633092222465,1.12046234,47320.0,47319.0,0.1328736]
[1633092222870,1.12046234,47320.0,47306.0,2.67685065]
[1633092223065,0.23998192,47319.0,47306.0,0.59255065]
[1633092223267,0.20102494,47308.0,47307.0,0.09686842]
[1633092223466,0.828412,47309.0,47307.0,0.31573142]
[1633092223665,0.511365,47309.0,47307.0,0.09686842]
[1633092224264,0.511365,47309.0,47306.0,0.00125065]
[1633092224667,0.511365,47309.0,47308.0,7.362e-05]
[1633092224865,0.211365,47309.0,47308.0,7.362e-05]
[1633092225066,0.211365,47309.0,47308.0,0.22327362]
[1633092225473,0.211365,47309.0,47308.0,7.362e-05]
[1633092226066,0.528391,47309.0,47308.0,7.362e-05]
[1633092226269,0.528391,47309.0,47308.0,1.25007362]
[1633092226666,0.211365,47309.0,47308.0,0.25007362]
[1633092226865,0.43713757,47309.0,47308.0,0.25007362]
[1633092227266,0.43713757,47309.0,47308.0,0.65007362]
[1633092227465,0.43713757,47309.0,47308.0,0.25007362]
[1633092227665,0.43713757,47309.0,47307.0,0.00014724]
[1633092227867,0.73713757,47309.0,47307.0,0.00014724]
[1633092228075,0.73713757,47309.0,47305.0,0.20094]
[1633092228267,1.06456764,47309.0,47305.0,0.20094]
[1633092228473,1.46726971,47308.0,47302.0,0.024]
[1633092228671,1.46726971,47308.0,47296.0,0.11813957]
[1633092228672,0.95,47302.0,47298.0,0.00144]
[1633092228878,0.11669957,47296.0,47290.0,0.00022]
[1633092229069,0.11669957,47296.0,47039.0,0.00022]
[1633092229275,0.11669957,47296.0,47277.0,0.07686306]
[1633092229276,0.09194265,47286.0,47277.0,0.07686306]
[1633092229470,0.09194265,47286.0,47278.0,0.218863]
[1633092229471,0.22902902,47285.0,47278.0,0.218863]
[1633092230070,0.52902902,47285.0,47278.0,0.31910192]
[1633092230269,0.52902902,47285.0,47274.0,1.6568]
[1633092230471,0.52902902,47285.0,47276.0,0.23489977]
[1633092230472,0.3,47281.0,47276.0,0.23489977]
[1633092230681,0.23658435,47280.0,47276.0,0.23489977]
[1633092230870,0.3,47278.0,47276.0,0.23489977]
[1633092231270,0.08546983,47278.0,47277.0,0.00061642]
[1633092231472,0.30562396,47278.0,47273.0,0.20076]
[1633092231671,0.42301,47282.0,47273.0,0.20076]
[1633092231873,0.211505,47282.0,47280.0,0.574587]
[1633092232071,0.211505,47282.0,47281.0,0.218612]
[1633092232072,0.196505,47282.0,47281.0,0.218612]
[1633092232272,0.196505,47282.0,47281.0,0.213612]
[1633092232471,0.476505,47282.0,47280.0,0.67125721]
[1633092232673,0.00120109,47281.0,47263.0,0.03]
[1633092232872,0.00120109,47281.0,47272.0,0.2232]
[1633092232873,0.24086109,47281.0,47272.0,0.2232]
[1633092233073,0.176505,47282.0,47268.0,0.0169]
[1633092233275,0.22752239,47285.0,47273.0,0.317174]
[1633092233472,0.22752239,47285.0,47266.0,0.422915]
[1633092233473,0.00122064,47283.0,47260.0,0.77019114]
[1633092233674,0.21156,47273.0,47265.0,0.11141566]
[1633092233871,0.21156,47268.0,47266.0,0.46416293]
[1633092234074,0.211563,47277.0,47272.0,6.045e-05]
[1633092234473,0.211563,47277.0,47271.0,7.254e-05]
[1633092234674,0.59611796,47277.0,47271.0,7.254e-05]
[1633092234874,0.511563,47277.0,47271.0,7.254e-05]
[1633092235472,0.211563,47277.0,47272.0,7.458e-05]
[1633092235883,0.211563,47277.0,47270.0,0.18629628]
[1633092236080,0.211563,47277.0,47252.0,0.58501105]
[1633092236081,0.8685568,47258.0,47248.0,0.25032]
[1633092236286,0.32170183,47247.0,47229.0,0.00124]
[1633092236478,0.32170183,47247.0,47221.0,0.24920352]
[1633092236479,4.44067972,47223.0,47221.0,0.24920352]
[1633092236679,0.46105429,47222.0,47221.0,0.24920352]
[1633092236875,0.22090457,47222.0,47221.0,0.24920352]
[1633092237075,0.22090457,47222.0,47221.0,0.24420352]
[1633092237274,0.1241546,47222.0,47221.0,1.03709362]
[1633092237479,0.1241546,47222.0,47217.0,0.0008]
[1633092237480,0.18126003,47222.0,47214.0,0.0008]
[1633092237679,0.18126003,47222.0,47192.0,0.00146]
[1633092237680,0.00124232,47216.0,47192.0,0.00146]
[1633092237985,0.95853976,47223.0,47192.0,0.00146]
[1633092237986,0.0005301,47234.0,47223.0,0.11007349]
[1633092238181,0.00123102,47240.0,47223.0,0.11007349]
[1633092238182,0.28144616,47240.0,47229.0,0.7478778]
[1633092238379,0.00127879,47237.0,47230.0,0.71571938]
[1633092238575,0.0005301,47236.0,47230.0,0.71571938]
[1633092238775,0.00123148,47244.0,47231.0,0.20076]
[1633092239033,0.00129076,47246.0,47235.0,0.00043551]
[1633092239235,0.21167464,47248.0,47242.0,0.00125203]
[1633092239432,0.00123789,47249.0,47240.0,0.3253819]
[1633092239638,0.00127605,47260.0,47255.0,0.12454114]
[1633092239837,0.439077,47259.0,47248.0,0.00027817]
[1633092240033,0.08124268,47256.0,47248.0,0.00027817]
[1633092240234,0.08124268,47256.0,47231.0,0.0005301]
[1633092240235,0.00122951,47249.0,47231.0,0.0005301]
[1633092240442,0.20203684,47247.0,47243.0,0.23997312]
[1633092240632,0.00123458,47244.0,47230.0,0.0999]
[1633092240835,0.00123458,47244.0,47235.0,0.20076]
[1633092241041,0.00124432,47246.0,47243.0,0.00033867]
[1633092241233,0.219077,47245.0,47243.0,0.00033867]
[1633092241435,0.21287746,47250.0,47239.0,0.11115762]
[1633092241638,0.211651,47250.0,47248.0,0.10335141]
[1633092241838,0.211651,47250.0,47248.0,0.20555258]
[1633092242438,0.423316,47250.0,47248.0,0.20555258]
[1633092242640,0.211651,47250.0,47249.0,0.0005301]
[1633092242840,0.211631,47258.0,47248.0,0.3001366]
[1633092243046,0.211641,47262.0,47248.0,0.3001366]
[1633092243244,0.219077,47260.0,47248.0,0.3001366]
[1633092243441,0.219077,47260.0,47248.0,0.19108268]
[1633092243442,0.00122277,47254.0,47248.0,0.19108268]
[1633092243646,0.21287106,47261.0,47249.0,0.26309939]
[1633092243844,0.21166,47256.0,47249.0,0.25252244]
[1633092244044,0.01,47269.0,47253.0,0.082453]
[1633092244241,0.0875251,47267.0,47263.0,0.07058028]
[1633092244442,0.01,47269.0,47266.0,0.1223144]
[1633092244644,0.01,47269.0,47268.0,0.57799881]
[1633092244840,0.01,47269.0,47268.0,0.26033281]
[1633092245041,0.01022969,47269.0,47268.0,0.26033281]
[1633092245242,0.01022969,47269.0,47268.0,0.26174588]
[1633092245642,0.01022969,47269.0,47268.0,0.17941188]
[1633092246044,0.005,47282.0,47269.0,0.8]
[1633092246251,0.21151,47281.0,47270.0,0.082324]
[1633092246445,0.21272485,47281.0,47270.0,0.082324]
[1633092246647,0.21151,47281.0,47270.0,0.082324]
[1633092246845,0.00125879,47280.0,47270.0,0.082324]
[1633092247151,0.00125879,47280.0,47268.0,0.30376844]
[1633092247152,0.00120948,47271.0,47268.0,0.17941188]
[1633092247346,0.211573,47270.0,47268.0,0.17941188]
[1633092247946,0.232467,47279.0,47268.0,0.17941188]
[1633092248151,0.0209,47279.0,47277.0,0.09325997]
[1633092248353,0.0209,47279.0,47270.0,0.08778031]
[1633092248552,8.78e-06,47279.0,47274.0,0.2232]
[1633092248762,0.0005301,47305.0,47286.0,0.06768]
[1633092248954,0.0005301,47305.0,47294.0,0.317065]
[1633092249151,0.01,47309.0,47295.0,0.61991527]
[1633092249152,0.0005301,47308.0,47295.0,0.61991527]
[1633092249350,0.0005301,47308.0,47299.0,0.09415724]
[1633092249554,0.0105301,47309.0,47300.0,0.28630577]
[1633092249754,0.01,47309.0,47291.0,0.33345041]
[1633092249952,0.00021748,47296.0,47291.0,0.33345041]
[1633092250156,0.00021748,47296.0,47294.0,0.422724]
[1633092250353,0.00021748,47296.0,47295.0,1.420849]
[1633092250553,0.211394,47308.0,47305.0,1.97978792]
[1633092250753,0.0005301,47307.0,47305.0,1.97978792]
[1633092250953,0.00033823,47306.0,47305.0,1.97978792]
[1633092251156,0.42503665,47306.0,47291.0,0.00269594]
[1633092251363,0.21144685,47300.0,47291.0,0.00141232]
[1633092251554,0.00016916,47292.0,47291.0,0.00141232]
[1633092251753,0.00016916,47292.0,47291.0,1.09362632]
[1633092251954,0.00016916,47292.0,47291.0,10.49840044]
[1633092252153,0.00016916,47292.0,47291.0,10.58402253]
[1633092252355,0.00016916,47292.0,47291.0,10.60948893]
[1633092252954,0.00016916,47292.0,47291.0,9.32520044]
[1633092253157,0.00016916,47292.0,47291.0,2.03042632]
[1633092253358,0.00016916,47292.0,47291.0,0.38141232]